bitfinex/quotes_ETHUSD_20251111
["timestamp","ask_amount","ask_price","bid_price","bid_amount"]
[1762871573178,0.012,3520.9,3520.1,0.1829]
[1762871573457,2.84268576,3517.8,3517.7,0.001]
[1762871573655,2.84182733,3518.9,3517.7,0.001]
[1762871573870,2.84262082,3517.9,3517.7,0.001]
[1762871574084,2.84268576,3517.8,3517.7,0.001]
[1762871574515,2.84268576,3517.8,3517.7,0.601]
[1762871575721,2.57233799,3515.0,3514.4,0.1829]
[1762871576316,2.57233799,3515.0,3514.5,1e-08]
[1762871577012,2.84527399,3514.6,3514.5,1e-08]
[1762871577170,2.84519748,3514.7,3514.5,1e-08]
[1762871577380,2.84527399,3514.6,3514.5,1e-08]
[1762871577911,1.1337408,3514.8,3514.5,1e-08]
[1762871578109,2.84527399,3514.6,3514.5,1e-08]
[1762871578315,2.57233799,3515.0,3514.5,1e-08]
[1762871579097,2.84527399,3514.6,3514.5,1e-08]
[1762871579297,2.57233799,3515.0,3514.5,1e-08]
[1762871579687,5.41729765,3515.0,3514.5,1e-08]
[1762871579894,2.57233799,3515.0,3514.5,1e-08]
[1762871580410,2.57233799,3515.0,3514.9,0.49046273]
[1762871580597,2.57233799,3515.0,3514.5,1e-08]
[1762871580797,2.84559786,3514.2,3512.8,0.188]
[1762871581109,1.5862408,3514.9,3513.6,0.058]
[1762871581294,2.84559786,3514.2,3513.6,0.058]
[1762871581496,2.84559786,3514.2,3511.3,2.84789061]
[1762871581708,0.4525,3514.9,3513.0,0.7528]
[1762871581915,1.5862408,3514.9,3513.0,0.3288]
[1762871582073,2.84559786,3514.2,3512.8,0.188]
[1762871582709,3.29809786,3514.2,3513.4,0.804]
[1762871583046,4.43183866,3514.2,3513.0,0.804]
[1762871583498,1.1337408,3514.2,3513.4,0.804]
[1762871583698,4.43183866,3514.2,3512.8,0.5168]
[1762871583873,1.1337408,3514.9,3513.1,0.3388]
[1762871584074,2.84511209,3514.8,3513.1,0.3388]
[1762871584307,2.84551688,3514.3,3514.2,0.805]
[1762871584514,1.1337408,3514.9,3513.1,0.01]
[1762871584838,2.84503115,3514.9,3514.2,0.805]
[1762871585105,2.57233799,3515.0,3514.3,0.805]
[1762871585321,2.57233799,3515.0,3514.4,0.49046273]
[1762871585682,2.57233799,3515.0,3514.3,0.805]
[1762871585683,2.57233799,3515.0,3514.7,0.49046273]
[1762871585880,2.57233799,3515.0,3514.4,0.804]
[1762871586114,2.57233799,3515.0,3514.5,0.49046273]
[1762871586312,2.57233799,3515.0,3514.4,0.804]
[1762871586516,2.57233799,3515.0,3514.7,0.49046273]
[1762871586820,2.57233799,3515.0,3514.7,0.652789]
[1762871587919,2.57233799,3515.0,3514.9,0.1408]
[1762871588125,2.57233799,3515.0,3514.9,0.63126273]
[1762871588281,2.57233799,3515.0,3514.7,0.16232627]
[1762871588282,2.57233799,3515.0,3514.6,0.49046273]
[1762871588483,2.57233799,3515.0,3514.7,0.806]
[1762871588712,2.57233799,3515.0,3514.4,0.001]
[1762871588882,2.84525375,3514.7,3514.5,0.806]
[1762871589082,2.84527399,3514.6,3514.4,0.001]
[1762871589408,2.57233799,3515.0,3514.5,1.29546273]
[1762871589613,2.84504422,3514.9,3514.5,1.29546273]
[1762871589786,5.41731537,3515.0,3514.4,0.001]
[1762871589987,2.57233799,3515.0,3514.4,0.001]
[1762871590200,2.84535495,3514.5,3514.4,0.805]
[1762871590881,2.57233799,3515.0,3514.4,0.805]
[1762871591103,2.84535495,3514.5,3514.4,0.805]
[1762871592022,2.84535495,3514.5,3514.4,0.001]
[1762871592318,2.57233799,3515.0,3514.4,0.001]
[1762871592923,2.57233799,3515.0,3514.5,0.803]
[1762871593160,2.57233799,3515.0,3514.9,0.1408]
[1762871594038,2.57233799,3515.0,3514.9,4.21059788]
[1762871594237,2.57233799,3515.0,3514.9,4.91617023]
[1762871594422,2.57233799,3515.0,3514.9,2.07113908]
[1762871594745,2.57233799,3515.0,3514.9,8.64762023]
[1762871594960,0.01,3516.9,3514.9,6.20431835]
[1762871595252,2.84372841,3516.6,3515.8,0.49046273]
[1762871595408,0.01,3516.9,3515.8,0.49046273]
[1762871595613,2.84414106,3516.0,3515.9,0.8]
[1762871595814,2.84406018,3516.1,3515.1,0.49046273]
[1762871596024,0.4625,3516.9,3515.2,1.29046273]
[1762871596025,1.1337408,3516.3,3515.2,1.29046273]
[1762871596241,2.84397929,3516.2,3515.2,0.49046273]
[1762871596413,6.46888337,3516.0,3515.3,0.8]
[1762871596644,2.84459784,3515.5,3515.3,0.8]
[1762871596955,9.31308341,3516.0,3515.0,0.49046273]
[1762871597159,9.31308341,3516.0,3514.9,0.1408]
[1762871597160,2.84454558,3515.5,3515.4,0.8]
[1762871597511,0.1951,3515.9,3514.9,0.1408]
[1762871597716,6.46888337,3515.6,3514.5,0.799]
[1762871597943,2.84497565,3515.0,3514.6,0.49046273]
[1762871598127,2.84496846,3515.0,3514.6,0.49046273]
[1762871598329,2.84516589,3514.8,3514.6,0.49046273]
[1762871598531,6.46888337,3515.4,3514.4,0.001]
[1762871598758,1.1337408,3516.1,3514.4,0.001]
[1762871598926,0.2936,3517.9,3515.7,0.49046273]
[1762871598927,0.4525,3517.2,3515.7,0.49046273]
[1762871599262,0.4525,3517.2,3515.8,0.822]
[1762871599263,2.84357494,3516.7,3515.8,0.822]
[1762871599410,6.46888337,3516.3,3515.2,0.1408]
[1762871599617,2.84438376,3515.7,3514.6,0.1408]
[1762871599940,1.1337408,3515.8,3514.4,0.001]
[1762871600126,1.3288408,3515.8,3514.7,0.49046273]
[1762871600450,0.4525,3516.2,3514.8,0.823]
[1762871600756,2.84470407,3515.4,3514.9,0.822]
[1762871600919,1.5862408,3516.2,3514.9,0.822]
[1762871601117,1.1337408,3516.6,3515.0,0.63126273]
[1762871601423,1.1337408,3516.6,3515.3,0.49046273]
[1762871601627,1.1337408,3516.6,3515.0,0.822]
[1762871601628,6.46888337,3515.9,3515.0,0.822]
[1762871601848,2.84524102,3514.7,3514.4,0.001]
[1762871602023,2.8450783,3514.9,3514.7,0.821]
[1762871602223,1.3288408,3515.8,3514.7,0.821]
[1762871602224,0.1951,3515.8,3514.7,0.821]
[1762871602449,2.84492557,3515.1,3514.8,0.63126273]
[1762871602756,0.4525,3516.2,3515.1,0.49046273]
[1762871603050,1.1337408,3516.0,3515.1,0.49046273]
[1762871603211,0.4525,3516.1,3514.9,0.635689]
[1762871603415,2.8444587,3515.7,3515.2,0.49046273]
[1762871603649,2.8444587,3515.7,3515.6,0.5]
[1762871604013,2.84446467,3515.6,3514.8,0.1408]
[1762871604215,0.4525,3515.7,3514.4,0.001]
[1762871604442,3.29692866,3515.7,3515.6,0.5]
[1762871604637,1.1337408,3515.6,3515.4,0.5]
[1762871604848,2.84454558,3515.5,3515.4,0.5]
[1762871606456,1.1337408,3515.6,3515.4,0.5]
[1762871606457,2.84447929,3515.6,3515.4,0.5]
[1762871606760,2.84447929,3515.6,3515.5,0.5]
[1762871607528,0.1951,3516.3,3515.4,0.49046273]
[1762871607770,0.1951,3516.3,3515.2,0.49046273]
[1762871608063,2.84438442,3515.7,3515.3,0.817]
[1762871608281,2.84460339,3515.5,3515.4,0.5]
[1762871610683,2.84486927,3515.1,3515.0,0.501]
[1762871610882,4.43651007,3515.1,3515.0,0.501]
[1762871611193,4.43651007,3515.1,3515.0,0.001]
[1762871611744,4.43651007,3515.1,3515.0,0.501]
[1762871611946,4.43651007,3515.1,3515.0,0.001]
[1762871612251,1.1337408,3515.7,3515.0,0.001]
[1762871612464,2.8448216,3515.2,3515.1,0.5]
[1762871612801,4.43594366,3515.8,3515.7,0.5]
[1762871612943,2.84486927,3515.1,3515.0,0.001]
[1762871613290,2.84486927,3515.1,3515.0,0.501]
[1762871613491,3.30276927,3515.1,3515.0,0.501]
[1762871613696,2.84486927,3515.1,3515.0,0.501]
[1762871613983,2.84454558,3515.5,3515.4,0.5]
[1762871614307,3.30196018,3516.1,3516.0,0.5]
[1762871614447,4.43570098,3516.1,3516.0,0.5]
[1762871615145,0.002,3516.2,3515.7,0.49046273]
[1762871615349,2.84597929,3516.2,3516.1,0.5]
[1762871615744,0.002,3516.2,3516.1,0.5]
[1762871615945,0.002,3516.2,3515.5,0.81]
[1762871616144,0.0012,3516.2,3516.1,0.5]
[1762871616751,0.0012,3516.2,3516.1,3.34406018]
[1762871617073,0.0012,3516.2,3516.1,1.70214062]
[1762871617267,0.0012,3516.2,3516.1,4.2174008]
[1762871617476,0.0012,3516.2,3516.1,4.5462008]
[1762871618101,0.0012,3516.2,3516.1,2.18134062]
[1762871618394,0.0012,3516.2,3516.1,1.79846273]
[1762871618547,0.0012,3516.2,3516.1,0.5]
[1762871618754,0.0012,3516.2,3516.1,1.79746273]
[1762871619092,0.0012,3516.2,3516.1,4.97032291]
[1762871619748,0.0012,3516.2,3516.1,2.12626273]
[1762871619946,0.0012,3516.2,3516.1,0.5]
[1762871620147,0.0012,3516.2,3516.1,1.307]
[1762871620395,0.0012,3516.2,3516.1,4.24506018]
[1762871620556,0.0012,3516.2,3516.1,5.06432291]
[1762871622007,0.01,3516.9,3516.8,3.83395681]
[1762871622287,2.84211364,3518.6,3517.8,0.99046273]
[1762871622470,0.01,3518.9,3517.8,1.79546273]
[1762871622647,0.1898,3518.8,3517.8,1.79546273]
[1762871622849,2.84232057,3518.3,3517.8,1.79546273]
[1762871623050,0.1898,3518.8,3517.8,1.79546273]
[1762871623262,2.84209783,3518.6,3517.8,1.79546273]
[1762871623458,2.84247021,3518.1,3517.8,0.99046273]
[1762871623670,2.84247021,3518.1,3517.8,1.79546273]
[1762871623869,2.84234099,3518.3,3517.8,1.305]
[1762871624061,2.84237044,3518.2,3517.8,1.305]
[1762871624257,2.84246277,3518.1,3517.8,1.305]
[1762871624461,3.31050496,3517.9,3517.8,0.5]
[1762871625156,2.85260496,3517.9,3517.8,0.5]
[1762871625487,0.01,3517.9,3517.8,0.803]
[1762871626067,0.1998,3517.9,3517.0,0.094]
[1762871626292,0.1998,3517.9,3517.1,1.09674019]
[1762871626480,0.1998,3517.9,3517.1,0.803]
[1762871626683,0.4579,3517.8,3517.1,0.803]
[1762871626997,2.84325154,3517.1,3517.0,0.802]
[1762871627203,0.012,3517.9,3517.0,0.802]
[1762871627378,0.012,3517.9,3517.4,2.84298298]
[1762871627576,2.85465762,3517.9,3517.4,0.2842983]
[1762871627772,2.85465762,3517.9,3517.4,0.49046273]
[1762871627773,0.012,3517.9,3517.4,0.49046273]
[1762871628302,0.012,3517.9,3517.4,3.33346995]
[1762871628498,0.012,3517.9,3517.4,0.49046273]
[1762871628704,0.012,3517.9,3517.7,0.49046273]
[1762871629410,3.04442291,3517.9,3516.7,0.094]
[1762871629711,0.012,3517.9,3517.3,0.49046273]
[1762871629917,0.2018,3517.9,3516.8,0.65544924]
[1762871630211,0.2018,3517.9,3517.1,0.49046273]
[1762871630411,0.2018,3517.9,3517.1,3.33370947]
[1762871630732,2.84283332,3517.7,3517.1,0.49046273]
[1762871631010,2.84295327,3517.5,3517.1,0.49046273]
[1762871631180,2.84277837,3517.7,3517.1,0.49046273]
[1762871631375,0.0518,3517.9,3517.1,0.49046273]
[1762871631597,2.89442273,3517.9,3517.1,0.49046273]
[1762871631913,0.0518,3517.9,3517.1,0.62846273]
[1762871632415,2.84273336,3517.8,3517.1,0.62846273]
[1762871632617,0.0518,3517.9,3517.2,0.49046273]
[1762871632790,2.84268576,3517.8,3517.2,0.49046273]
[1762871633116,2.89447856,3517.9,3517.2,0.49046273]
[1762871633289,0.0518,3517.9,3517.2,0.49046273]
[1762871633491,2.84195867,3518.7,3517.9,3.33301374]
[1762871633694,0.6477,3518.8,3518.0,0.797]
[1762871633911,0.01,3518.9,3518.0,0.797]
[1762871634223,0.1998,3518.9,3518.3,0.49046273]
[1762871634380,9.21293341,3518.7,3517.3,2.84303526]
[1762871634594,6.37097474,3518.2,3517.5,0.797]
[1762871635222,2.84282224,3517.7,3517.5,0.797]
[1762871635396,6.37097474,3518.2,3517.5,0.797]
[1762871635397,2.84244336,3518.1,3517.5,0.797]
[1762871635596,6.37097474,3518.2,3517.5,0.797]
[1762871635597,0.1887,3517.9,3517.5,0.797]
[1762871636496,2.84273629,3517.8,3517.5,0.797]
[1762871636693,0.1887,3517.9,3517.5,0.797]
[1762871636926,2.84274813,3517.8,3517.5,0.797]
[1762871637098,1.5972408,3518.6,3517.5,0.797]
[1762871637297,0.4635,3518.6,3517.6,0.49046273]
[1762871637532,2.84234208,3518.3,3517.9,0.49046273]
[1762871637732,2.84212357,3518.5,3517.6,2.84277468]
[1762871637733,1.1337408,3518.4,3517.7,0.49046273]
[1762871638029,0.4635,3518.6,3517.5,0.797]
[1762871638030,1.1337408,3518.6,3517.5,0.797]
[1762871638231,0.01,3518.9,3518.2,2.84233155]
[1762871638536,0.01,3518.9,3518.5,3.4733328]
[1762871638830,0.01,3518.9,3518.5,0.1408]
[1762871639128,0.01,3518.9,3518.5,0.63126273]
[1762871639316,0.01,3518.9,3518.8,3.33234064]
[1762871639538,0.01,3518.9,3518.8,0.49046273]
[1762871639740,0.01,3518.9,3518.6,0.49046273]
[1762871639928,0.01,3518.9,3518.6,0.632989]
[1762871640129,0.0092,3518.9,3518.4,0.49046273]
[1762871640327,0.1965,3518.9,3518.3,0.794]
[1762871640631,2.8419326,3518.8,3518.3,0.794]
[1762871640849,0.66,3518.9,3518.3,0.794]
[1762871641018,2.84219177,3518.5,3518.3,0.794]
[1762871641362,0.0092,3518.9,3518.4,0.49046273]
[1762871641573,0.0092,3518.9,3518.8,2.84187791]
[1762871641722,0.0092,3518.9,3518.8,3.33234064]
[1762871642042,0.0092,3518.9,3518.8,3.79914064]
[1762871642652,0.002,3519.3,3518.8,17.49308064]
[1762871642956,0.002,3519.3,3518.9,0.791]
[1762871643166,0.002,3519.3,3519.2,3.33201762]
[1762871643372,0.002,3519.3,3519.1,0.49046273]
[1762871643526,0.002,3519.3,3518.9,0.791]
[1762871643721,0.002,3519.3,3518.9,1.28146273]
[1762871643950,0.002,3519.3,3518.9,1.69379167]
[1762871644351,2.84169136,3519.1,3518.9,0.49046273]
[1762871644555,0.4655,3519.3,3518.6,0.79]
[1762871644825,2.84170773,3519.1,3518.6,0.79]
[1762871645056,2.84177709,3519.0,3518.6,0.79]
[1762871645366,0.4655,3519.3,3518.6,0.79]
[1762871645367,0.002,3519.3,3518.6,0.79]
[1762871645578,0.002,3519.3,3518.7,2.8419088]
[1762871645856,0.002,3519.3,3518.8,1.13786427]
[1762871646072,0.002,3519.3,3517.0,9.21427768]
[1762871646073,2.8431707,3517.2,3517.1,0.01]
[1762871646226,11.42620331,3517.2,3517.1,0.01]
[1762871646548,11.88970331,3517.2,3517.1,0.011]
[1762871646720,2.84397929,3516.2,3516.1,0.011]
[1762871647160,3.30747929,3516.2,3516.1,0.011]
[1762871647457,4.44122009,3516.2,3516.1,0.011]
[1762871647669,6.01560083,3516.2,3516.1,0.011]
[1762871648041,10.3490184,3515.8,3515.7,0.001]
[1762871648375,10.8125184,3515.8,3515.7,0.001]
[1762871648924,11.6045184,3515.8,3515.7,0.001]
[1762871649763,10.8125184,3515.8,3515.7,0.001]
[1762871650134,0.4635,3516.3,3515.7,0.001]
[1762871650348,2.84430286,3515.8,3515.7,0.001]
[1762871651267,3.30780286,3515.8,3515.7,0.001]
[1762871651970,4.44154366,3515.8,3515.7,0.001]
[1762871653146,5.23254366,3515.8,3515.7,0.001]
[1762871653334,6.01387653,3515.8,3515.7,0.001]
[1762871654164,6.01287653,3515.8,3515.7,0.001]
[1762871654374,4.44154366,3515.8,3515.7,0.001]
[1762871654670,5.23154366,3515.8,3515.7,0.004]
[1762871655334,4.44154366,3515.8,3515.7,0.004]
[1762871655652,10.8125184,3515.8,3515.7,0.004]
[1762871655849,11.6025184,3515.8,3515.7,0.004]
[1762871656874,3.97804366,3515.8,3515.7,0.004]
[1762871657263,0.1873,3516.3,3515.7,0.004]
[1762871657464,2.84406018,3516.1,3515.7,0.004]
[1762871657666,3.32720286,3515.8,3515.7,0.004]
[1762871657982,3.63314398,3516.0,3515.7,0.004]
[1762871658152,2.84201808,3518.7,3515.7,0.004]
[1762871658350,2.84201808,3518.7,3515.7,0.504]
[1762871658351,2.84403052,3516.2,3515.7,0.504]
[1762871658558,2.84400776,3516.2,3515.7,0.004]
[1762871658752,2.84400776,3516.2,3515.7,0.33885249]
[1762871658976,2.84381754,3516.4,3515.7,0.33885249]
[1762871658977,2.84388511,3516.4,3515.7,0.004]
[1762871659177,1.1337408,3516.5,3515.7,0.004]
[1762871659477,6.37097474,3516.1,3515.7,0.004]
[1762871659663,3.11540286,3515.8,3515.7,0.004]
[1762871659864,3.90540286,3515.8,3515.7,0.004]
[1762871660183,4.36690286,3515.8,3515.7,0.004]
[1762871660376,3.57690286,3515.8,3515.7,0.004]
[1762871660537,3.90540286,3515.8,3515.7,0.004]
[1762871660976,10.2753776,3515.8,3515.7,0.004]
[1762871661377,11.0816184,3515.8,3515.7,0.004]
[1762871661549,11.8716184,3515.8,3515.7,0.004]
[1762871662743,10.6201184,3515.8,3515.7,0.004]
[1762871662990,11.1380184,3515.8,3515.7,0.004]
[1762871663144,1.1337408,3515.6,3515.1,0.01]
[1762871663345,1.1337408,3515.6,3515.1,0.1995]
[1762871663346,1.1337408,3515.5,3515.1,0.1995]
[1762871663881,0.788,3516.0,3515.1,3.54426285]
[1762871664079,0.8541521,3517.6,3515.2,0.35442629]
[1762871664080,2.84373666,3516.5,3515.2,0.35442629]
[1762871664243,2.84373666,3516.5,3515.2,0.85432629]
[1762871664244,1.1337408,3516.3,3515.2,0.85432629]
[1762871664446,3.97766023,3516.3,3515.3,3.34459644]
[1762871664670,1.1329408,3516.3,3515.1,0.1995]
[1762871664980,9.31269785,3515.2,3515.1,0.01]
[1762871665196,10.37179785,3515.2,3515.1,0.01]
[1762871665504,10.37179785,3515.2,3515.1,1e-08]
[1762871665505,10.83329785,3515.2,3515.1,1e-08]
[1762871665874,2.84557049,3514.3,3514.1,0.00710001]
[1762871666067,6.46790951,3514.8,3514.1,0.00710001]
[1762871666294,0.788,3514.9,3514.1,0.00710001]
[1762871666295,0.1934,3514.9,3514.1,0.00710001]
[1762871666499,2.84555859,3514.3,3514.1,0.00710001]
[1762871666695,0.787,3514.8,3514.1,0.00710001]
[1762871666894,0.1934,3514.9,3514.1,0.00710001]
[1762871666895,2.84542917,3514.5,3514.1,0.00710001]
[1762871667109,2.84535575,3514.5,3514.1,0.00710001]
[1762871667313,2.84552494,3514.3,3514.1,0.00710001]
[1762871667511,2.84559786,3514.2,3514.1,0.00710001]
[1762871668588,6.46790951,3514.6,3514.1,0.00710001]
[1762871668589,0.4975,3515.2,3514.1,0.68450001]
[1762871668915,2.84534857,3514.6,3514.1,0.68450001]
[1762871669121,2.8454153,3514.5,3514.1,1.08716658]
[1762871669413,7.25390951,3514.8,3514.1,0.00710001]
[1762871669613,6.46790951,3514.8,3514.1,0.20250001]
[1762871669974,2.84552102,3514.3,3514.1,0.20250001]
[1762871670187,2.84545884,3514.4,3514.1,0.20250001]
[1762871670410,6.46790951,3514.8,3514.1,0.20250001]
[1762871671012,1.1337408,3515.1,3514.7,0.982]
[1762871671215,0.784,3515.2,3514.2,0.4963]
[1762871671511,2.84466497,3515.4,3515.3,0.5]
[1762871671672,2.84475912,3515.3,3515.1,0.6954]
[1762871671872,0.4975,3515.5,3514.9,0.5]
[1762871672106,7.25290951,3515.6,3514.9,0.5]
[1762871672314,2.8446986,3515.4,3515.2,0.5]
[1762871672520,10.09739544,3515.6,3515.2,0.5]
[1762871672676,2.84470742,3515.3,3515.2,0.5]
[1762871673189,7.25290951,3515.6,3515.0,0.5]
[1762871673399,6.46790951,3515.1,3515.0,0.5]
[1762871673627,6.46790951,3515.1,3514.8,0.5]
[1762871673931,0.4975,3515.8,3514.8,0.5]
[1762871674074,6.46790951,3515.2,3515.0,0.5]
[1762871674274,2.84497726,3515.0,3514.8,0.5]
[1762871674510,6.46790951,3515.2,3514.6,0.5]
[1762871674809,6.46790951,3515.2,3514.4,0.5]
[1762871675010,6.46790951,3515.2,3514.3,0.1954]
[1762871675211,6.46790951,3515.6,3515.0,0.5]
[1762871675372,2.84475096,3515.3,3515.0,0.5]
[1762871675578,1.1337408,3515.3,3515.0,0.5]
[1762871675774,0.2254,3515.1,3514.3,0.1954]
[1762871676081,6.46790951,3514.9,3514.3,0.5]
[1762871676277,2.84538504,3514.5,3514.3,0.5]
[1762871676498,2.84543592,3514.4,3514.3,0.5]
[1762871676829,1.1337408,3514.7,3514.1,0.50710001]
[1762871676972,6.96540951,3514.8,3514.1,0.50710001]
[1762871676973,2.84556274,3514.3,3514.1,0.50710001]
[1762871677172,2.84544144,3514.4,3514.1,0.50710001]
[1762871677374,1.1337408,3514.7,3514.1,0.70250001]
[1762871677575,1.1337408,3515.1,3514.8,0.5]
[1762871677892,3.97864905,3515.1,3514.8,0.5]
[1762871678088,3.97858144,3515.2,3514.8,0.5]
[1762871678275,6.46790951,3515.5,3514.8,0.5]
[1762871678472,2.84471135,3515.3,3514.8,0.5]
[1762871678676,2.84483056,3515.2,3514.8,0.5]
[1762871678986,2.84494002,3515.1,3514.8,0.5]
[1762871679305,1.1337408,3515.4,3514.8,0.5]
[1762871679306,2.84479924,3515.2,3514.8,0.5]
[1762871679524,3.97839676,3515.4,3514.8,0.5]
[1762871679692,1.1337408,3515.4,3514.8,0.5]
[1762871679892,6.46790951,3515.5,3514.8,0.5]
[1762871679893,0.002,3516.5,3515.3,0.482]
[1762871680220,0.002,3516.1,3515.4,0.33267982]
[1762871680517,0.002,3516.1,3514.8,0.4963]
[1762871680518,2.84446467,3515.6,3515.5,0.5]
[1762871680704,2.8444023,3515.7,3515.5,0.5]
[1762871680904,2.84446204,3515.7,3515.5,0.5]
[1762871681095,2.84428987,3515.9,3515.5,0.5]
[1762871681295,2.84433152,3515.8,3515.5,0.5]
[1762871681493,0.002,3516.1,3515.0,0.782]
[1762871681681,0.002,3516.1,3513.2,2.84636124]
[1762871681682,0.002,3516.1,3516.0,0.5]
[1762871681881,6.46990951,3516.1,3515.6,0.5]
[1762871682075,0.002,3516.1,3515.6,0.5]
[1762871682782,0.002,3516.1,3516.0,0.5]
[1762871682981,0.002,3516.1,3516.0,0.982]
[1762871683386,0.002,3516.1,3516.0,1.29488689]
[1762871683533,0.002,3516.1,3516.0,0.5]
[1762871683741,0.002,3516.1,3516.0,1.4783]
[1762871684308,0.002,3516.1,3515.6,0.781]
[1762871684495,0.002,3516.1,3516.0,0.5]
[1762871685254,2.84606018,3516.1,3515.6,0.781]
[1762871685546,2.84415109,3516.0,3515.8,0.5]
[1762871685706,3.08946395,3516.1,3515.8,0.5]
[1762871686041,0.002,3516.1,3515.8,0.5]
[1762871686648,2.84612949,3516.1,3515.8,0.5]
[1762871687159,2.84612949,3516.1,3515.2,2.84478064]
[1762871687160,0.002,3516.1,3516.0,0.982]
[1762871687517,0.002,3516.1,3516.0,4.32244106]
[1762871687717,0.002,3516.1,3516.0,5.11690839]
[1762871687927,0.002,3516.1,3516.0,5.1453498]
[1762871688223,0.0012,3516.1,3516.0,5.11690839]
[1762871688424,0.0012,3516.1,3516.0,4.62060839]
[1762871688763,0.0012,3516.1,3516.0,4.32244106]
[1762871688973,0.0012,3516.1,3516.0,2.2553]
[1762871689515,0.0012,3516.1,3516.0,5.09944106]
[1762871689728,0.0012,3516.1,3516.0,1.277]
[1762871690325,0.0012,3516.1,3516.0,1.759]
[1762871690827,2.84526018,3516.1,3516.0,1.277]
[1762871691029,0.2446,3516.1,3515.8,0.5]
[1762871691237,2.84421478,3516.0,3515.8,0.5]
[1762871691732,0.0012,3516.1,3515.8,0.5]
[1762871691927,0.0012,3516.1,3516.0,0.5]
[1762871692929,0.0012,3516.1,3515.9,0.5]
[1762871693130,2.84414106,3516.0,3515.9,0.5]
[1762871693648,2.84432079,3515.8,3515.7,0.5]
[1762871693975,2.84415307,3516.0,3515.7,0.5]
[1762871694134,2.84430286,3515.8,3515.7,0.5]
[1762871694479,6.46910951,3516.1,3515.5,0.5]
[1762871694695,2.84436663,3515.8,3515.5,0.5]
[1762871694898,6.46910951,3516.1,3515.8,0.5]
[1762871695100,0.0012,3516.1,3516.0,0.5]
[1762871695606,0.0012,3516.1,3516.0,0.9615]
[1762871695920,0.0012,3516.1,3516.0,1.7325]
[1762871696047,0.0012,3516.1,3516.0,1.271]
[1762871697893,0.0012,3516.1,3516.0,1.7214]
[1762871698187,0.0012,3516.1,3516.0,4.56554106]
[1762871698480,0.0012,3516.1,3516.0,5.47999517]
[1762871699955,0.0012,3516.1,3516.0,5.02344106]
[1762871700184,0.0012,3516.1,3516.0,4.56554106]
[1762871700354,0.0012,3516.1,3516.0,1.271]
[1762871700554,0.0012,3516.1,3516.0,1.7214]
[1762871701189,0.0012,3516.1,3516.0,5.02344106]
[1762871701358,0.0012,3516.1,3516.0,6.09463133]
[1762871701564,0.0012,3516.1,3516.0,6.09163133]
[1762871701887,0.0012,3516.1,3516.0,2.33919027]
[1762871702089,0.0012,3516.1,3516.0,5.02044106]
[1762871703587,0.002,3516.5,3516.4,3.34381754]
[1762871703789,0.002,3516.5,3516.4,5.02011754]
[1762871703974,0.002,3516.5,3516.4,5.04855571]
[1762871704175,0.012,3516.9,3516.8,3.34349408]
[1762871704475,0.012,3516.9,3516.8,5.17960197]
[1762871704686,0.01,3517.9,3516.8,5.17960197]
[1762871704687,0.01,3517.9,3517.6,2.84277893]
[1762871704880,0.01,3517.9,3517.8,1.1398]
[1762871705051,2.85260496,3517.9,3517.8,1.267]
[1762871705690,2.84274299,3517.8,3517.0,0.4579]
[1762871705900,2.95150496,3517.9,3517.8,0.5]
[1762871706108,0.1089,3517.9,3517.8,0.5]
[1762871706308,2.84268576,3517.8,3517.7,0.5]
[1762871706798,3.09638576,3517.8,3517.7,0.5]
[1762871707198,3.57378576,3517.8,3517.3,0.5]
[1762871707415,2.84300904,3517.4,3517.3,0.5]
[1762871707565,2.84325154,3517.1,3516.9,0.766]
[1762871707765,0.7287,3517.4,3516.9,1.266]
[1762871707969,2.84333238,3517.0,3516.9,1.266]
[1762871708604,3.57443238,3517.0,3516.9,0.5]
[1762871708784,10.04234189,3517.0,3516.9,0.5]
[1762871709122,2.84373666,3516.5,3516.4,1.265]
[1762871709672,7.10967664,3517.0,3516.5,0.5]
[1762871709875,1.1337408,3517.3,3517.1,0.5]
[1762871710107,0.482,3517.6,3517.4,0.5]
[1762871710108,3.97666901,3517.5,3517.4,0.5]
[1762871710269,0.482,3518.1,3517.0,0.764]
[1762871710470,0.01,3517.9,3517.8,0.5]
[1762871712007,2.85260496,3517.9,3517.8,0.5]
[1762871712216,0.0092,3517.9,3517.5,3.60686485]
[1762871712409,0.0092,3517.9,3517.8,0.5]
[1762871714436,0.0092,3517.9,3517.8,4.25098576]
[1762871714639,0.0092,3517.9,3517.8,4.27941261]
[1762871714797,0.0092,3517.9,3517.8,4.25098576]
[1762871715204,0.0092,3517.9,3517.8,0.5]
[1762871715435,2.95070496,3517.9,3517.8,0.5]
[1762871715637,2.57085251,3517.9,3516.6,0.1894]
[1762871715843,6.46790951,3517.6,3516.6,0.9494]
[1762871716008,2.09115251,3517.9,3517.6,0.5]
[1762871716009,2.84284351,3517.7,3517.6,0.5]
[1762871716209,1.2418408,3517.9,3516.7,0.4579]
[1762871716536,0.482,3517.8,3517.4,0.5]
[1762871716712,2.84292821,3517.5,3517.4,0.5]
[1762871717034,2.84322137,3517.2,3516.6,0.9494]
[1762871717342,2.84326296,3517.1,3516.6,0.76]
[1762871717505,2.84345223,3516.9,3516.6,0.76]
[1762871717838,2.84327407,3517.1,3516.9,0.5]
[1762871718137,1.1337408,3517.6,3517.5,0.5]
[1762871718312,3.97658819,3517.6,3517.5,0.5]
[1762871718514,1.2418408,3517.9,3516.7,0.4579]
[1762871718823,0.0092,3517.9,3517.8,0.5]
[1762871719026,2.95070496,3517.9,3517.8,0.5]
[1762871719209,0.1081,3517.9,3517.8,0.5]
[1762871719610,0.0092,3517.9,3517.8,0.5]